[Event "*** SCC Grand Prix: Titled Tuesday Blitz"]
[Site "Chess.com"]
[Date "2020.06.02"]
[Round "9"]
[White "m-garcett"]
[Black "MilanJeremic"]
[Result "0-1"]
[WhiteElo "2065"]
[BlackElo "2241"]
[TimeControl "180+1"]
[EndTime "11:47:04 PDT"]
[Termination "MilanJeremic won by resignation"]

1. e4 {[%clk 0:03:00.9]} 1... c6 {[%clk 0:02:57.8]} 2. c4 {[%clk 0:03:00.2]}
2... g6 {[%clk 0:02:55.6]} 3. d4 {[%clk 0:02:59.2]} 3... d5 {[%clk 0:02:54.2]}
4. exd5 {[%clk 0:02:55.6]} 4... cxd5 {[%clk 0:02:51]} 5. Nc3 {[%clk 0:02:56.1]}
5... Nf6 {[%clk 0:02:48.7]} 6. Nf3 {[%clk 0:02:52.9]} 6... Bg7 {[%clk
0:02:46.3]} 7. Bd3 {[%clk 0:02:44.8]} 7... O-O {[%clk 0:02:45.1]} 8. O-O {[%clk
0:02:43.8]} 8... Bg4 {[%clk 0:02:44.4]} 9. c5 {[%clk 0:02:35.6]} 9... Nc6 {[%clk
0:02:42.6]} 10. Be3 {[%clk 0:02:34.9]} 10... a5 {[%clk 0:02:36]} 11. h3 {[%clk
0:02:34.1]} 11... Bxf3 {[%clk 0:02:34.7]} 12. Qxf3 {[%clk 0:02:35]} 12... e6
{[%clk 0:02:34.5]} 13. a3 {[%clk 0:02:34.1]} 13... b6 {[%clk 0:02:23.9]} 14. Bb5
{[%clk 0:02:33.5]} 14... Na7 {[%clk 0:02:18]} 15. b4 {[%clk 0:02:30.1]} 15...
Nxb5 {[%clk 0:02:14.9]} 16. Nxb5 {[%clk 0:02:29.8]} 16... axb4 {[%clk
0:02:14.3]} 17. axb4 {[%clk 0:02:29.5]} 17... bxc5 {[%clk 0:02:13.7]} 18. bxc5
{[%clk 0:02:22.5]} 18... Ne4 {[%clk 0:02:13.2]} 19. Bf4 {[%clk 0:02:08.8]} 19...
Rxa1 {[%clk 0:02:10.7]} 20. Rxa1 {[%clk 0:02:08.1]} 20... Nxc5 {[%clk
0:02:10.2]} 21. Bd6 {[%clk 0:01:57.4]} 21... Ne4 {[%clk 0:02:05.5]} 22. Bxf8
{[%clk 0:01:56.6]} 22... Bxf8 {[%clk 0:02:04.5]} 23. Ra7 {[%clk 0:01:51.8]}
23... Be7 {[%clk 0:01:47.6]} 24. Qf4 {[%clk 0:01:16.8]} 24... Bf6 {[%clk
0:01:41.3]} 25. Rb7 {[%clk 0:01:01.7]} 25... Qa5 {[%clk 0:01:14]} 26. Qb8+
{[%clk 0:00:46.1]} 26... Kg7 {[%clk 0:01:12.4]} 27. Qe8 {[%clk 0:00:46.2]} 27...
Qe1+ {[%clk 0:01:09.4]} 28. Kh2 {[%clk 0:00:46.1]} 28... Ng5 {[%clk 0:01:08.6]}
29. Nd6 {[%clk 0:00:17.6]} 29... Be5+ {[%clk 0:00:54.3]} 30. dxe5 {[%clk
0:00:18.5]} 30... Qxe5+ {[%clk 0:00:53.2]} 31. g3 {[%clk 0:00:18.7]} 31... Qxd6
{[%clk 0:00:52.1]} 32. Rb8 {[%clk 0:00:18.2]} 32... Qc5 {[%clk 0:00:42.3]} 33.
Kg2 {[%clk 0:00:16.7]} 33... Ne4 {[%clk 0:00:31.6]} 34. Qf8+ {[%clk 0:00:15.1]}
34... Kf6 {[%clk 0:00:30.9]} 35. Qh8+ {[%clk 0:00:14.9]} 35... Kf5 {[%clk
0:00:30.5]} 36. Qxh7 {[%clk 0:00:13.8]} 36... Qxf2+ {[%clk 0:00:28.8]} 0-1

[Event "*** SCC Grand Prix: Titled Tuesday Blitz"]
[Site "Chess.com"]
[Date "2020.06.02"]
[Round "9"]
[White "Roza_Idrisova"]
[Black "czasnaszachy"]
[Result "1/2-1/2"]
[WhiteElo "2173"]
[BlackElo "2332"]
[TimeControl "180+1"]
[EndTime "11:47:04 PDT"]
[Termination "Game drawn by agreement"]

1. d4 {[%clk 0:03:00.9]} 1... d5 {[%clk 0:02:58.1]} 2. Nf3 {[%clk 0:03:00.5]}
2... Nf6 {[%clk 0:02:55.6]} 3. Bg5 {[%clk 0:02:59.8]} 3... Ne4 {[%clk
0:02:51.3]} 4. Bf4 {[%clk 0:02:59]} 4... e6 {[%clk 0:02:37.7]} 5. c3 {[%clk
0:02:57.5]} 5... Bd6 {[%clk 0:02:31.9]} 6. Bg3 {[%clk 0:02:56.8]} 6... O-O
{[%clk 0:02:31.4]} 7. Nbd2 {[%clk 0:02:56]} 7... f5 {[%clk 0:02:27.7]} 8. e3
{[%clk 0:02:55.3]} 8... b6 {[%clk 0:02:27.3]} 9. Bd3 {[%clk 0:02:52]} 9... c5
{[%clk 0:02:21.3]} 10. Be5 {[%clk 0:02:51.1]} 10... c4 {[%clk 0:02:19.1]} 11.
Bc2 {[%clk 0:02:50.5]} 11... Nc6 {[%clk 0:02:15.5]} 12. Bxd6 {[%clk 0:02:49.7]}
12... Qxd6 {[%clk 0:02:15.1]} 13. O-O {[%clk 0:02:49.2]} 13... Bd7 {[%clk
0:02:13.6]} 14. Nxe4 {[%clk 0:02:46.5]} 14... fxe4 {[%clk 0:02:12.2]} 15. Nd2
{[%clk 0:02:46.5]} 15... Rf6 {[%clk 0:02:02.5]} 16. f3 {[%clk 0:02:43.9]} 16...
exf3 {[%clk 0:01:55.1]} 17. Rxf3 {[%clk 0:02:42.5]} 17... Raf8 {[%clk
0:01:53.9]} 18. Rxf6 {[%clk 0:02:41.2]} 18... Rxf6 {[%clk 0:01:53.6]} 19. Qe2
{[%clk 0:02:39.7]} 19... e5 {[%clk 0:01:50.9]} 20. Rf1 {[%clk 0:02:36.7]} 20...
e4 {[%clk 0:01:47.3]} 21. b3 {[%clk 0:02:30.1]} 21... b5 {[%clk 0:01:46.7]} 22.
b4 {[%clk 0:02:29]} 22... Ne7 {[%clk 0:01:45]} 23. Rxf6 {[%clk 0:02:27.8]} 23...
Qxf6 {[%clk 0:01:44.8]} 24. Qf2 {[%clk 0:02:27.2]} 24... Qg5 {[%clk 0:01:35.2]}
25. Nf1 {[%clk 0:02:20.2]} 25... h5 {[%clk 0:01:23.9]} 26. Qg3 {[%clk
0:02:15.9]} 26... Qxg3 {[%clk 0:01:19.9]} 27. Nxg3 {[%clk 0:02:15.4]} 27... g6
{[%clk 0:01:20.2]} 28. h3 {[%clk 0:02:10.1]} 28... Kg7 {[%clk 0:01:18.9]} 29.
Bd1 {[%clk 0:02:08.8]} 29... Kf6 {[%clk 0:01:17.9]} 30. Ne2 {[%clk 0:02:08.6]}
30... g5 {[%clk 0:01:10.8]} 31. Kf2 {[%clk 0:02:02.6]} 31... Nf5 {[%clk
0:00:52.8]} 32. g3 {[%clk 0:01:54.5]} 32... Nd6 {[%clk 0:00:44.6]} 33. Ng1
{[%clk 0:01:52.6]} 33... g4 {[%clk 0:00:43.7]} 34. hxg4 {[%clk 0:01:51.6]} 34...
hxg4 {[%clk 0:00:43.2]} 35. Ne2 {[%clk 0:01:50.2]} 35... Bc6 {[%clk 0:00:29.5]}
36. Nf4 {[%clk 0:01:48.6]} 36... Kf5 {[%clk 0:00:28.7]} 37. Ke1 {[%clk
0:01:42.9]} 37... Nf7 {[%clk 0:00:27.6]} 38. Kd2 {[%clk 0:01:38.9]} 38... Ng5
{[%clk 0:00:27.4]} 39. Ke2 {[%clk 0:01:26.9]} 39... Nf3 {[%clk 0:00:27.2]} 40.
Bc2 {[%clk 0:01:24]} 40... Ng1+ {[%clk 0:00:25.9]} 41. Kf2 {[%clk 0:01:23.1]}
41... Nf3 {[%clk 0:00:25.8]} 42. Ng2 {[%clk 0:01:15.6]} 42... Ng5 {[%clk
0:00:24.2]} 43. Nh4+ {[%clk 0:01:14.7]} 43... Kf6 {[%clk 0:00:23.5]} 44. Bd1
{[%clk 0:01:11.8]} 44... Nf3 {[%clk 0:00:23.2]} 45. Ng2 {[%clk 0:01:04.8]} 45...
Kf5 {[%clk 0:00:22]} 46. Nf4 {[%clk 0:01:04.5]} 46... Bb7 {[%clk 0:00:15.3]} 47.
Ng2 {[%clk 0:01:00.1]} 47... Bc6 {[%clk 0:00:14.9]} 48. Ke2 {[%clk 0:00:55.4]}
48... Bb7 {[%clk 0:00:14.6]} 49. Bc2 {[%clk 0:00:53.9]} 49... Ng1+ {[%clk
0:00:13.6]} 50. Kf2 {[%clk 0:00:53.2]} 50... Nf3 {[%clk 0:00:13.7]} 1/2-1/2

[Event "*** SCC Grand Prix: Titled Tuesday Blitz"]
[Site "Chess.com"]
[Date "2020.06.02"]
[Round "9"]
[White "Evgeny81"]
[Black "FabianoCaruana"]
[Result "0-1"]
[WhiteElo "2722"]
[BlackElo "2999"]
[TimeControl "180+1"]
[EndTime "11:47:06 PDT"]
[Termination "FabianoCaruana won by resignation"]

1. d4 {[%clk 0:03:00.9]} 1... Nf6 {[%clk 0:02:59.1]} 2. Nf3 {[%clk 0:03:00.6]}
2... d6 {[%clk 0:02:59]} 3. c4 {[%clk 0:03:00.3]} 3... g6 {[%clk 0:02:59.6]} 4.
Nc3 {[%clk 0:02:59.6]} 4... Bf5 {[%clk 0:03:00.2]} 5. Nd2 {[%clk 0:02:57.3]}
5... e5 {[%clk 0:02:57.4]} 6. d5 {[%clk 0:02:57.2]} 6... e4 {[%clk 0:02:54.6]}
7. Nb3 {[%clk 0:02:57]} 7... Bg7 {[%clk 0:02:53.9]} 8. h3 {[%clk 0:02:45.4]}
8... h5 {[%clk 0:02:48.8]} 9. Bg5 {[%clk 0:02:43.5]} 9... Nbd7 {[%clk
0:02:44.3]} 10. e3 {[%clk 0:02:42.2]} 10... h4 {[%clk 0:02:42.8]} 11. Be2 {[%clk
0:02:39.5]} 11... Qe7 {[%clk 0:02:38.9]} 12. Nd4 {[%clk 0:02:34.2]} 12... Ne5
{[%clk 0:02:34.7]} 13. Qc2 {[%clk 0:02:23.8]} 13... a6 {[%clk 0:02:28.6]} 14.
Bxf6 {[%clk 0:02:10.7]} 14... Bxf6 {[%clk 0:02:26.1]} 15. Nxe4 {[%clk
0:02:08.5]} 15... Bxe4 {[%clk 0:02:08.3]} 16. Qxe4 {[%clk 0:02:08.1]} 16... O-O
{[%clk 0:02:01.8]} 17. O-O {[%clk 0:01:43.8]} 17... Bg7 {[%clk 0:01:58.7]} 18.
f4 {[%clk 0:01:33.6]} 18... f5 {[%clk 0:01:55.7]} 19. Qc2 {[%clk 0:01:31.4]}
19... Nxc4 {[%clk 0:01:51.2]} 20. Qxc4 {[%clk 0:01:12.9]} 20... Qxe3+ {[%clk
0:01:49.6]} 21. Kh1 {[%clk 0:01:13.2]} 21... Bxd4 {[%clk 0:01:33.7]} 22. Rf3
{[%clk 0:01:11.1]} 22... b5 {[%clk 0:01:22.8]} 23. Rxe3 {[%clk 0:01:06.5]} 23...
bxc4 {[%clk 0:01:21.8]} 24. Re6 {[%clk 0:00:59.2]} 24... Bxb2 {[%clk 0:01:21]}
25. Re1 {[%clk 0:00:52.3]} 25... c3 {[%clk 0:01:12.3]} 26. Bd3 {[%clk
0:00:49.3]} 26... Kg7 {[%clk 0:01:12]} 27. Kg1 {[%clk 0:00:40.5]} 27... Ba3
{[%clk 0:01:07.9]} 28. Kf2 {[%clk 0:00:34]} 28... Rab8 {[%clk 0:01:05.4]} 29.
Kf3 {[%clk 0:00:31.8]} 29... Rb2 {[%clk 0:01:03.2]} 30. R1e2 {[%clk 0:00:28.2]}
30... Bc5 {[%clk 0:00:42.2]} 31. Rc2 {[%clk 0:00:20.4]} 31... Kf7 {[%clk
0:00:31.8]} 32. Ree2 {[%clk 0:00:19.2]} 32... Bd4 {[%clk 0:00:31.9]} 33. Bxa6
{[%clk 0:00:17.2]} 33... Ra8 {[%clk 0:00:28.5]} 34. Bd3 {[%clk 0:00:16.8]} 34...
Raxa2 {[%clk 0:00:27.8]} 35. g3 {[%clk 0:00:14.2]} 35... hxg3 {[%clk 0:00:27.1]}
36. Kxg3 {[%clk 0:00:14.5]} 36... Ra1 {[%clk 0:00:27.1]} 37. Kf3 {[%clk
0:00:13.2]} 37... Rd1 {[%clk 0:00:27.2]} 38. Bc4 {[%clk 0:00:10.1]} 38... Rd2
{[%clk 0:00:26.3]} 39. Rcxd2 {[%clk 0:00:08.3]} 39... cxd2 {[%clk 0:00:25.8]}
0-1

[Event "*** SCC Grand Prix: Titled Tuesday Blitz"]
[Site "Chess.com"]
[Date "2020.06.02"]
[Round "9"]
[White "gurelediz"]
[Black "Mikhal867"]
[Result "0-1"]
[WhiteElo "2589"]
[BlackElo "2334"]
[TimeControl "180+1"]
[EndTime "11:47:06 PDT"]
[Termination "Mikhal867 won by resignation"]

1. e4 {[%clk 0:03:00.9]} 1... g6 {[%clk 0:02:58.8]} 2. d4 {[%clk 0:03:00.7]}
2... Bg7 {[%clk 0:02:58]} 3. Nf3 {[%clk 0:03:00.9]} 3... d6 {[%clk 0:02:57.5]}
4. Bc4 {[%clk 0:03:00.2]} 4... e6 {[%clk 0:02:56.5]} 5. O-O {[%clk 0:02:59.7]}
5... Ne7 {[%clk 0:02:56.5]} 6. Bb3 {[%clk 0:02:57.4]} 6... Nd7 {[%clk
0:02:53.4]} 7. Bf4 {[%clk 0:02:51.6]} 7... h6 {[%clk 0:02:51.7]} 8. c3 {[%clk
0:02:49.3]} 8... g5 {[%clk 0:02:51.6]} 9. Bg3 {[%clk 0:02:48.8]} 9... Ng6 {[%clk
0:02:50.9]} 10. Re1 {[%clk 0:02:41.5]} 10... b6 {[%clk 0:02:46.5]} 11. Nbd2
{[%clk 0:02:39.3]} 11... g4 {[%clk 0:02:43]} 12. Nh4 {[%clk 0:02:19.7]} 12...
Nxh4 {[%clk 0:02:42.5]} 13. Qxg4 {[%clk 0:02:19.1]} 13... Qg5 {[%clk 0:02:41.1]}
14. Qxh4 {[%clk 0:02:13.8]} 14... Qxd2 {[%clk 0:02:40.6]} 15. Re3 {[%clk
0:01:53.6]} 15... Bf6 {[%clk 0:02:34.4]} 16. Qh5 {[%clk 0:01:51.7]} 16... Ke7
{[%clk 0:02:19.2]} 17. Rd1 {[%clk 0:01:33.9]} 17... Qxb2 {[%clk 0:02:16.4]} 18.
Rf3 {[%clk 0:01:33.8]} 18... Qe2 {[%clk 0:01:56.6]} 19. Bh4 {[%clk 0:00:38.8]}
19... Rg8 {[%clk 0:01:55.6]} 20. Kh1 {[%clk 0:00:28.2]} 20... Bb7 {[%clk
0:01:41.5]} 21. Bxf6+ {[%clk 0:00:15.6]} 21... Nxf6 {[%clk 0:01:41.3]} 22. Qh4
{[%clk 0:00:15.8]} 22... Rg6 {[%clk 0:01:24.8]} 23. Re3 {[%clk 0:00:09.3]} 23...
Qg4 {[%clk 0:01:22.3]} 24. Qxg4 {[%clk 0:00:08.9]} 24... Nxg4 {[%clk 0:01:21.8]}
25. Re2 {[%clk 0:00:09.3]} 25... Bxe4 {[%clk 0:01:18.8]} 26. f3 {[%clk
0:00:09.3]} 26... Bf5 {[%clk 0:01:10.3]} 27. fxg4 {[%clk 0:00:03.8]} 27... Bxg4
{[%clk 0:01:10.3]} 28. Rde1 {[%clk 0:00:04.7]} 28... Bxe2 {[%clk 0:01:10.1]} 29.
Rxe2 {[%clk 0:00:05.6]} 29... Rf6 {[%clk 0:01:07.3]} 30. Kg1 {[%clk 0:00:05.3]}
30... Rg8 {[%clk 0:01:03.7]} 31. c4 {[%clk 0:00:05.1]} 31... c5 {[%clk
0:01:02.4]} 32. d5 {[%clk 0:00:04.8]} 32... e5 {[%clk 0:01:02.3]} 33. g3 {[%clk
0:00:04.9]} 33... Rf4 {[%clk 0:00:59.1]} 34. Kg2 {[%clk 0:00:03.7]} 34... f5
{[%clk 0:00:57.9]} 35. Re3 {[%clk 0:00:02.4]} 35... Kf6 {[%clk 0:00:56.7]} 36.
a4 {[%clk 0:00:02.5]} 36... h5 {[%clk 0:00:54.6]} 37. Re2 {[%clk 0:00:02.8]}
37... h4 {[%clk 0:00:54]} 38. Kh3 {[%clk 0:00:02.4]} 38... hxg3 {[%clk
0:00:53.4]} 39. hxg3 {[%clk 0:00:03.3]} 39... Rf3 {[%clk 0:00:53.5]} 40. Bc2
{[%clk 0:00:01.6]} 40... Rfxg3+ {[%clk 0:00:52.2]} 41. Kh2 {[%clk 0:00:01.9]}
41... R3g5 {[%clk 0:00:50.6]} 42. Kh1 {[%clk 0:00:02.2]} 42... Rh8+ {[%clk
0:00:48.8]} 43. Rh2 {[%clk 0:00:03.1]} 43... Rxh2+ {[%clk 0:00:48]} 44. Kxh2
{[%clk 0:00:04]} 44... e4 {[%clk 0:00:47.5]} 45. Kh3 {[%clk 0:00:03.6]} 45...
Ke5 {[%clk 0:00:47.5]} 46. Kh4 {[%clk 0:00:04.5]} 0-1

[Event "*** SCC Grand Prix: Titled Tuesday Blitz"]
[Site "Chess.com"]
[Date "2020.06.02"]
[Round "9"]
[White "Balla_Tamas"]
[Black "Leonid_Starozhilov"]
[Result "1-0"]
[WhiteElo "2495"]
[BlackElo "2695"]
[TimeControl "180+1"]
[EndTime "11:47:10 PDT"]
[Termination "Balla_Tamas won on time"]

1. e4 {[%clk 0:02:32.5]} 1... g6 {[%clk 0:02:59.1]} 2. d4 {[%clk 0:02:31]} 2...
Bg7 {[%clk 0:02:59.4]} 3. Bc4 {[%clk 0:02:29.6]} 3... d6 {[%clk 0:02:59.1]} 4.
Nf3 {[%clk 0:02:19.9]} 4... Nf6 {[%clk 0:02:58.4]} 5. Qe2 {[%clk 0:02:17]} 5...
Nc6 {[%clk 0:02:58.3]} 6. c3 {[%clk 0:02:16]} 6... O-O {[%clk 0:02:50.5]} 7. O-O
{[%clk 0:02:15.2]} 7... Bg4 {[%clk 0:02:49.1]} 8. Nbd2 {[%clk 0:02:13.3]} 8...
e5 {[%clk 0:02:47.3]} 9. h3 {[%clk 0:02:13]} 9... Bxf3 {[%clk 0:02:34.2]} 10.
Nxf3 {[%clk 0:02:12.8]} 10... exd4 {[%clk 0:02:30.6]} 11. cxd4 {[%clk
0:02:13.7]} 11... Nd7 {[%clk 0:02:05.6]} 12. Be3 {[%clk 0:02:04.6]} 12... Nb6
{[%clk 0:02:04.5]} 13. Bb3 {[%clk 0:02:03.3]} 13... Na5 {[%clk 0:02:01.9]} 14.
Bc2 {[%clk 0:02:02.2]} 14... Re8 {[%clk 0:01:58.3]} 15. b3 {[%clk 0:01:58.5]}
15... Nc6 {[%clk 0:01:55.4]} 16. Qd2 {[%clk 0:01:58]} 16... a5 {[%clk
0:01:38.2]} 17. d5 {[%clk 0:01:48.4]} 17... Bxa1 {[%clk 0:01:28.1]} 18. Rxa1
{[%clk 0:01:40.5]} 18... Ne5 {[%clk 0:01:26.3]} 19. Nxe5 {[%clk 0:01:36.4]}
19... dxe5 {[%clk 0:01:24.8]} 20. Bd3 {[%clk 0:01:34]} 20... Nc8 {[%clk
0:01:24.9]} 21. Rc1 {[%clk 0:01:31.9]} 21... Nd6 {[%clk 0:01:24.9]} 22. Qc3
{[%clk 0:01:30.4]} 22... c6 {[%clk 0:00:39.2]} 23. dxc6 {[%clk 0:01:27]} 23...
bxc6 {[%clk 0:00:40.1]} 24. Qxc6 {[%clk 0:01:22.5]} 24... Rc8 {[%clk 0:00:39.6]}
25. Qd5 {[%clk 0:01:22]} 25... Rxc1+ {[%clk 0:00:38.4]} 26. Bxc1 {[%clk
0:01:21.1]} 26... Nf5 {[%clk 0:00:33.2]} 27. Bc4 {[%clk 0:01:10.8]} 27... Qxd5
{[%clk 0:00:32]} 28. Bxd5 {[%clk 0:01:09.9]} 28... Nd4 {[%clk 0:00:27.1]} 29.
Bd2 {[%clk 0:01:08.9]} 29... Rc8 {[%clk 0:00:27]} 30. Bxa5 {[%clk 0:01:05]}
30... Rc1+ {[%clk 0:00:27]} 31. Kh2 {[%clk 0:01:04.3]} 31... Rc2 {[%clk
0:00:27]} 32. a4 {[%clk 0:00:53.8]} 32... Rxf2 {[%clk 0:00:19.1]} 33. Bc7 {[%clk
0:00:53.5]} 33... Ra2 {[%clk 0:00:08.1]} 34. a5 {[%clk 0:00:46.2]} 34... h5
{[%clk 0:00:08.4]} 35. h4 {[%clk 0:00:45.2]} 35... Ne6 {[%clk 0:00:05.4]} 36.
Bxe5 {[%clk 0:00:39.2]} 36... Nc5 {[%clk 0:00:03.9]} 37. b4 {[%clk 0:00:37.6]}
37... Ra4 {[%clk 0:00:03.1]} 38. bxc5 {[%clk 0:00:36.8]} 38... Rxa5 {[%clk
0:00:03.7]} 39. c6 {[%clk 0:00:36.8]} 39... Rc5 {[%clk 0:00:03.4]} 40. c7 {[%clk
0:00:35.5]} 40... Kf8 {[%clk 0:00:02.9]} 41. Bb7 {[%clk 0:00:33.5]} 1-0

[Event "*** SCC Grand Prix: Titled Tuesday Blitz"]
[Site "Chess.com"]
[Date "2020.06.02"]
[Round "9"]
[White "AungTZ"]
[Black "Baby_Shak"]
[Result "1-0"]
[WhiteElo "1970"]
[BlackElo "2570"]
[TimeControl "180+1"]
[EndTime "11:47:10 PDT"]
[Termination "AungTZ won on time"]

1. e4 {[%clk 0:03:00.9]} 1... c5 {[%clk 0:02:59.8]} 2. Nf3 {[%clk 0:02:59.4]}
2... g6 {[%clk 0:03:00.7]} 3. d4 {[%clk 0:02:53.3]} 3... cxd4 {[%clk 0:03:01.6]}
4. Nxd4 {[%clk 0:02:53.2]} 4... Nc6 {[%clk 0:03:01.4]} 5. Nc3 {[%clk 0:02:51]}
5... Bg7 {[%clk 0:03:00.9]} 6. Be3 {[%clk 0:02:50.6]} 6... Nf6 {[%clk
0:03:01.3]} 7. Be2 {[%clk 0:02:50.4]} 7... O-O {[%clk 0:02:59.9]} 8. Nb3 {[%clk
0:02:49.2]} 8... a5 {[%clk 0:02:58.7]} 9. a4 {[%clk 0:02:47.8]} 9... Nb4 {[%clk
0:02:59]} 10. O-O {[%clk 0:02:46.6]} 10... d5 {[%clk 0:02:59.3]} 11. e5 {[%clk
0:02:45.6]} 11... Ne4 {[%clk 0:02:58.8]} 12. f4 {[%clk 0:02:19]} 12... Nxc3
{[%clk 0:02:35.8]} 13. bxc3 {[%clk 0:02:13.3]} 13... Nc6 {[%clk 0:02:36.7]} 14.
Bb5 {[%clk 0:02:00.1]} 14... Bf5 {[%clk 0:02:31.5]} 15. Bxc6 {[%clk 0:01:52.2]}
15... bxc6 {[%clk 0:02:32.4]} 16. Bc5 {[%clk 0:01:52.1]} 16... Qc7 {[%clk
0:02:27.3]} 17. Nd4 {[%clk 0:01:49.9]} 17... Be4 {[%clk 0:02:25.9]} 18. Qd2
{[%clk 0:01:34.8]} 18... Rfb8 {[%clk 0:02:22.4]} 19. Rab1 {[%clk 0:01:32.3]}
19... Rb7 {[%clk 0:02:19.4]} 20. Rxb7 {[%clk 0:01:26.2]} 20... Qxb7 {[%clk
0:02:20.3]} 21. Kh1 {[%clk 0:01:20.9]} 21... Rb8 {[%clk 0:02:19.4]} 22. h3
{[%clk 0:01:19.9]} 22... Qd7 {[%clk 0:02:18.4]} 23. c4 {[%clk 0:01:16.8]} 23...
Qxh3+ {[%clk 0:02:16.5]} 24. Kg1 {[%clk 0:01:15.1]} 24... Qg4 {[%clk 0:02:09.9]}
25. Nxc6 {[%clk 0:01:10.7]} 25... Rb2 {[%clk 0:02:02.7]} 26. Nd4 {[%clk
0:01:01.9]} 26... dxc4 {[%clk 0:01:43.5]} 27. Bxe7 {[%clk 0:00:56.2]} 27... h5
{[%clk 0:01:37.3]} 28. Nf3 {[%clk 0:00:55]} 28... Bxf3 {[%clk 0:01:31.7]} 29.
Rxf3 {[%clk 0:00:54.1]} 29... Rb1+ {[%clk 0:01:31.2]} 30. Kh2 {[%clk 0:00:54]}
30... Kh7 {[%clk 0:01:25.2]} 31. Bg5 {[%clk 0:00:48.5]} 31... Rb4 {[%clk
0:01:13.6]} 32. Qd5 {[%clk 0:00:45.8]} 32... Rb2 {[%clk 0:00:42]} 33. Qxf7
{[%clk 0:00:40.3]} 33... Rxc2 {[%clk 0:00:40.1]} 34. Rg3 {[%clk 0:00:40]} 34...
Qf5 {[%clk 0:00:33.4]} 35. Bf6 {[%clk 0:00:38.8]} 35... Rxg2+ {[%clk 0:00:27.2]}
36. Kxg2 {[%clk 0:00:31.9]} 36... Qe4+ {[%clk 0:00:23.4]} 37. Kh2 {[%clk
0:00:30.2]} 37... Qe2+ {[%clk 0:00:10.8]} 38. Rg2 {[%clk 0:00:30]} 1-0

[Event "*** SCC Grand Prix: Titled Tuesday Blitz"]
[Site "Chess.com"]
[Date "2020.06.02"]
[Round "9"]
[White "Mazetovic"]
[Black "GM_Levan_Pantsulaia"]
[Result "1-0"]
[WhiteElo "2673"]
[BlackElo "2825"]
[TimeControl "180+1"]
[EndTime "11:47:11 PDT"]
[Termination "Mazetovic won by resignation"]

1. e4 {[%clk 0:03:00.9]} 1... c5 {[%clk 0:02:59.7]} 2. Nf3 {[%clk 0:03:00.5]}
2... e6 {[%clk 0:02:59.9]} 3. d4 {[%clk 0:02:59.9]} 3... cxd4 {[%clk 0:03:00.8]}
4. Nxd4 {[%clk 0:03:00.8]} 4... a6 {[%clk 0:03:01.5]} 5. c4 {[%clk 0:02:59.1]}
5... Nf6 {[%clk 0:03:00.6]} 6. Nc3 {[%clk 0:02:58.6]} 6... Qc7 {[%clk
0:03:01.2]} 7. Be2 {[%clk 0:02:58.4]} 7... Bb4 {[%clk 0:02:54.1]} 8. O-O {[%clk
0:02:51.1]} 8... O-O {[%clk 0:02:54]} 9. Bg5 {[%clk 0:02:39.7]} 9... Be7 {[%clk
0:02:35.5]} 10. Rc1 {[%clk 0:02:36.8]} 10... d6 {[%clk 0:02:35.2]} 11. Be3
{[%clk 0:02:32]} 11... Nbd7 {[%clk 0:02:35]} 12. f4 {[%clk 0:02:32]} 12... Re8
{[%clk 0:02:30.7]} 13. Bf3 {[%clk 0:02:30]} 13... Bf8 {[%clk 0:02:29.7]} 14. g4
{[%clk 0:02:29.2]} 14... e5 {[%clk 0:02:27.4]} 15. Nf5 {[%clk 0:02:22.6]} 15...
g6 {[%clk 0:02:12.1]} 16. g5 {[%clk 0:01:52]} 16... gxf5 {[%clk 0:02:00.5]} 17.
gxf6 {[%clk 0:01:51.9]} 17... Nxf6 {[%clk 0:02:01.4]} 18. Nd5 {[%clk 0:01:40.3]}
18... Nxd5 {[%clk 0:01:57.1]} 19. cxd5 {[%clk 0:01:40.6]} 19... Qd8 {[%clk
0:01:56.5]} 20. Kh1 {[%clk 0:01:40]} 20... Kh8 {[%clk 0:01:35.2]} 21. Rg1 {[%clk
0:01:38.1]} 21... Qf6 {[%clk 0:01:34.9]} 22. fxe5 {[%clk 0:01:33.9]} 22... dxe5
{[%clk 0:01:33.7]} 23. Bg5 {[%clk 0:01:33.3]} 23... Qd6 {[%clk 0:01:27.2]} 24.
Bh5 {[%clk 0:00:59.8]} 24... Bg7 {[%clk 0:01:04.9]} 25. Bxf7 {[%clk 0:00:36.4]}
25... Rf8 {[%clk 0:01:04.5]} 26. Qh5 {[%clk 0:00:35.6]} 26... fxe4 {[%clk
0:00:52.8]} 27. Rcf1 {[%clk 0:00:32.7]} 27... Bd7 {[%clk 0:00:20.7]} 28. Bh4
{[%clk 0:00:32.5]} 28... Be8 {[%clk 0:00:17.1]} 29. Rxg7 {[%clk 0:00:28.3]}
29... Kxg7 {[%clk 0:00:17.3]} 30. Bg3 {[%clk 0:00:17.4]} 30... Rxf7 {[%clk
0:00:12.7]} 31. Bxe5+ {[%clk 0:00:17.2]} 31... Kg8 {[%clk 0:00:11.9]} 32. Rg1+
{[%clk 0:00:16.1]} 32... Qg6 {[%clk 0:00:11.8]} 33. Rxg6+ {[%clk 0:00:15.5]}
33... hxg6 {[%clk 0:00:12.7]} 34. Qxg6+ {[%clk 0:00:15.8]} 34... Kf8 {[%clk
0:00:13.1]} 35. Bd6+ {[%clk 0:00:16.2]} 1-0